[Event "*** Titled Tuesday Blitz"]
[Site "Chess.com"]
[Date "2020.04.21"]
[Round "9"]
[White "Blagorod"]
[Black "The_Machine04"]
[Result "0-1"]
[WhiteElo "2130"]
[BlackElo "2320"]
[TimeControl "180+1"]
[EndTime "11:50:42 PDT"]
[Termination "The_Machine04 won on time"]

1. e4 {[%clk 0:03:00.9]} 1... d6 {[%clk 0:02:59.6]} 2. d4 {[%clk 0:03:00.3]}
2... Nf6 {[%clk 0:02:58.8]} 3. Nc3 {[%clk 0:02:57.3]} 3... e5 {[%clk 0:02:59.3]}
4. dxe5 {[%clk 0:02:56.9]} 4... dxe5 {[%clk 0:03:00.2]} 5. Qxd8+ {[%clk
0:02:56.7]} 5... Kxd8 {[%clk 0:03:01.1]} 6. Bc4 {[%clk 0:02:54.7]} 6... Be6
{[%clk 0:03:00.5]} 7. Bxe6 {[%clk 0:02:53.1]} 7... fxe6 {[%clk 0:03:01.4]} 8. f3
{[%clk 0:02:51.6]} 8... Bd6 {[%clk 0:02:59.3]} 9. Be3 {[%clk 0:02:51.6]} 9...
Ke7 {[%clk 0:02:59.6]} 10. Nge2 {[%clk 0:02:51.4]} 10... Nbd7 {[%clk 0:02:59.8]}
11. O-O-O {[%clk 0:02:47.9]} 11... a6 {[%clk 0:03:00.2]} 12. a3 {[%clk
0:02:45.2]} 12... b5 {[%clk 0:03:00.3]} 13. Rd2 {[%clk 0:02:40.2]} 13... Rhb8
{[%clk 0:02:56.4]} 14. Rhd1 {[%clk 0:02:28.5]} 14... a5 {[%clk 0:02:51.3]} 15.
Nb1 {[%clk 0:02:10]} 15... a4 {[%clk 0:02:39.8]} 16. c3 {[%clk 0:02:08.2]} 16...
Bc5 {[%clk 0:02:33.1]} 17. Rd3 {[%clk 0:01:57.5]} 17... Bxe3+ {[%clk 0:02:30.4]}
18. Rxe3 {[%clk 0:01:57]} 18... Nc5 {[%clk 0:02:30.4]} 19. Kc2 {[%clk 0:01:51]}
19... Rd8 {[%clk 0:02:27.1]} 20. Rxd8 {[%clk 0:01:47.6]} 20... Rxd8 {[%clk
0:02:28]} 21. Nc1 {[%clk 0:01:44.2]} 21... Ne8 {[%clk 0:02:23.9]} 22. Nd3 {[%clk
0:01:43.1]} 22... Nxd3 {[%clk 0:02:13.8]} 23. Rxd3 {[%clk 0:01:43]} 23... Rxd3
{[%clk 0:02:13.8]} 24. Kxd3 {[%clk 0:01:42.7]} 24... Nd6 {[%clk 0:02:14]} 25.
Nd2 {[%clk 0:01:42.5]} 25... c5 {[%clk 0:02:13.8]} 26. g3 {[%clk 0:01:34.7]}
26... g5 {[%clk 0:02:12.2]} 27. Ke3 {[%clk 0:01:24.8]} 27... Kf6 {[%clk
0:02:07]} 28. f4 {[%clk 0:01:12.1]} 28... exf4+ {[%clk 0:02:06.2]} 29. gxf4
{[%clk 0:01:11.9]} 29... gxf4+ {[%clk 0:02:06.5]} 30. Kxf4 {[%clk 0:01:12]}
30... e5+ {[%clk 0:02:06.9]} 31. Kg4 {[%clk 0:01:09]} 31... Kg6 {[%clk
0:02:06.9]} 32. h4 {[%clk 0:01:05.3]} 32... h6 {[%clk 0:01:57.1]} 33. Kh3 {[%clk
0:00:50.7]} 33... h5 {[%clk 0:01:26.5]} 34. Kg3 {[%clk 0:00:50.2]} 34... Kf6
{[%clk 0:01:27.1]} 35. Kf3 {[%clk 0:00:49.9]} 35... Ke6 {[%clk 0:01:27.8]} 36.
Ke3 {[%clk 0:00:47]} 36... Kd7 {[%clk 0:01:27.7]} 37. Kd3 {[%clk 0:00:44.2]}
37... Kc6 {[%clk 0:01:27.9]} 38. Ke3 {[%clk 0:00:35.1]} 38... b4 {[%clk
0:01:19.5]} 39. cxb4 {[%clk 0:00:32.7]} 39... cxb4 {[%clk 0:01:20.4]} 40. axb4
{[%clk 0:00:31.3]} 40... Kb5 {[%clk 0:01:20.5]} 41. Kd3 {[%clk 0:00:31]} 41...
Kxb4 {[%clk 0:01:20.2]} 42. Kc2 {[%clk 0:00:19.9]} 42... Nc4 {[%clk 0:01:06.1]}
43. Nf3 {[%clk 0:00:18.7]} 43... Ne3+ {[%clk 0:01:06.1]} 44. Kd3 {[%clk
0:00:17.7]} 44... Ng4 {[%clk 0:01:03.6]} 45. Kc2 {[%clk 0:00:14.8]} 45... Kc4
{[%clk 0:01:02.2]} 46. Kd2 {[%clk 0:00:11.4]} 46... Kb3 {[%clk 0:00:42.4]} 47.
Kc1 {[%clk 0:00:11.3]} 47... Nf2 {[%clk 0:00:31.7]} 48. Nxe5 {[%clk 0:00:10.8]}
48... Nxe4 {[%clk 0:00:31.6]} 49. Nd3 {[%clk 0:00:08.2]} 49... Ng3 {[%clk
0:00:20.4]} 50. Nf4 {[%clk 0:00:07.2]} 50... Kc4 {[%clk 0:00:17.6]} 51. Kc2
{[%clk 0:00:05.7]} 51... Kd4 {[%clk 0:00:16.3]} 52. Ne6+ {[%clk 0:00:04.1]}
52... Ke5 {[%clk 0:00:15.6]} 53. Nc7 {[%clk 0:00:02.4]} 53... Nf5 {[%clk
0:00:15]} 54. Kc3 {[%clk 0:00:02.3]} 54... Nxh4 {[%clk 0:00:14.6]} 55. Kb4
{[%clk 0:00:02.9]} 55... Nf5 {[%clk 0:00:14.1]} 56. Kxa4 {[%clk 0:00:03.6]}
56... h4 {[%clk 0:00:14.2]} 0-1

[Event "*** Titled Tuesday Blitz"]
[Site "Chess.com"]
[Date "2020.04.21"]
[Round "9"]
[White "Morshynska"]
[Black "gmkomarov"]
[Result "0-1"]
[WhiteElo "2077"]
[BlackElo "2420"]
[TimeControl "180+1"]
[EndTime "11:50:42 PDT"]
[Termination "gmkomarov won on time"]

1. e4 {[%clk 0:03:00.9]} 1... e6 {[%clk 0:02:59.2]} 2. d3 {[%clk 0:02:54.8]}
2... d5 {[%clk 0:02:59.1]} 3. Nd2 {[%clk 0:02:55.7]} 3... Nf6 {[%clk 0:02:59]}
4. Qe2 {[%clk 0:02:48.8]} 4... Be7 {[%clk 0:02:56.9]} 5. g3 {[%clk 0:02:47.2]}
5... Nc6 {[%clk 0:02:55.4]} 6. Ngf3 {[%clk 0:02:46.6]} 6... dxe4 {[%clk
0:02:49.5]} 7. dxe4 {[%clk 0:02:45.8]} 7... e5 {[%clk 0:02:49.5]} 8. c3 {[%clk
0:02:29]} 8... O-O {[%clk 0:02:48.3]} 9. Bg2 {[%clk 0:02:24.4]} 9... b6 {[%clk
0:02:48]} 10. Nh4 {[%clk 0:01:58.6]} 10... a5 {[%clk 0:02:44.4]} 11. Nf5 {[%clk
0:01:50.6]} 11... Ba6 {[%clk 0:02:43.3]} 12. Qf3 {[%clk 0:01:46.7]} 12... Bc5
{[%clk 0:02:37.1]} 13. Bf1 {[%clk 0:01:41.6]} 13... Bxf1 {[%clk 0:02:25.3]} 14.
Nxf1 {[%clk 0:01:37.5]} 14... Re8 {[%clk 0:02:11.1]} 15. Bg5 {[%clk 0:01:31.2]}
15... Re6 {[%clk 0:02:10.9]} 16. Rd1 {[%clk 0:01:17.1]} 16... Qc8 {[%clk
0:02:10.3]} 17. N1e3 {[%clk 0:01:01.9]} 17... Bxe3 {[%clk 0:02:02.6]} 18. Nxe3
{[%clk 0:00:55.5]} 18... Qa6 {[%clk 0:02:00.9]} 19. Bxf6 {[%clk 0:00:50.1]}
19... Rxf6 {[%clk 0:01:59]} 20. Qe2 {[%clk 0:00:51]} 20... Qc8 {[%clk
0:01:45.7]} 21. O-O {[%clk 0:00:29.1]} 21... Qe8 {[%clk 0:01:41.9]} 22. Qc4
{[%clk 0:00:25]} 22... Re6 {[%clk 0:01:27.7]} 23. Rd5 {[%clk 0:00:21.4]} 23...
Ne7 {[%clk 0:01:20.5]} 24. Rd2 {[%clk 0:00:17.3]} 24... Rc6 {[%clk 0:00:55.6]}
25. Qd3 {[%clk 0:00:16.7]} 25... Rd6 {[%clk 0:00:54.4]} 26. Qe2 {[%clk
0:00:15.1]} 26... Rxd2 {[%clk 0:00:54.2]} 27. Qxd2 {[%clk 0:00:16]} 27... Rd8
{[%clk 0:00:54]} 28. Qe2 {[%clk 0:00:16.3]} 28... Qa4 {[%clk 0:00:51.1]} 29. Rd1
{[%clk 0:00:14.6]} 29... Rxd1+ {[%clk 0:00:48.7]} 30. Qxd1 {[%clk 0:00:15.5]}
30... Qxd1+ {[%clk 0:00:47]} 31. Nxd1 {[%clk 0:00:16.4]} 31... f6 {[%clk
0:00:47.2]} 32. Ne3 {[%clk 0:00:16]} 32... Kf7 {[%clk 0:00:46.6]} 33. f3 {[%clk
0:00:16.3]} 33... Ke6 {[%clk 0:00:46.3]} 34. Kf2 {[%clk 0:00:16.8]} 34... b5
{[%clk 0:00:42.9]} 35. Ke2 {[%clk 0:00:16.7]} 35... c5 {[%clk 0:00:40.7]} 36. b3
{[%clk 0:00:15]} 36... Nc6 {[%clk 0:00:39.3]} 37. a3 {[%clk 0:00:14.3]} 37... b4
{[%clk 0:00:38.4]} 38. axb4 {[%clk 0:00:15.2]} 38... cxb4 {[%clk 0:00:36.7]} 39.
cxb4 {[%clk 0:00:14.9]} 39... axb4 {[%clk 0:00:35.8]} 40. Nc2 {[%clk 0:00:14.5]}
40... Kd6 {[%clk 0:00:34]} 41. Kd3 {[%clk 0:00:14.7]} 41... Kc5 {[%clk
0:00:33.7]} 42. f4 {[%clk 0:00:13]} 42... Na5 {[%clk 0:00:32.1]} 43. Na1 {[%clk
0:00:11.1]} 43... Nb7 {[%clk 0:00:30]} 44. f5 {[%clk 0:00:11]} 44... Nd6 {[%clk
0:00:27.3]} 45. Nc2 {[%clk 0:00:11.1]} 45... Nb5 {[%clk 0:00:26.9]} 46. g4
{[%clk 0:00:08.5]} 46... Na3 {[%clk 0:00:21.3]} 47. Nxa3 {[%clk 0:00:05.8]}
47... bxa3 {[%clk 0:00:20.6]} 48. Kc3 {[%clk 0:00:06.2]} 48... Kb5 {[%clk
0:00:16.6]} 49. h3 {[%clk 0:00:04.9]} 49... Kc5 {[%clk 0:00:14.3]} 50. h4 {[%clk
0:00:03.9]} 50... h6 {[%clk 0:00:13.3]} 51. h5 {[%clk 0:00:02.9]} 51... Kb5
{[%clk 0:00:13.3]} 0-1

[Event "*** Titled Tuesday Blitz"]
[Site "Chess.com"]
[Date "2020.04.21"]
[Round "9"]
[White "11kevin"]
[Black "JLRHei"]
[Result "1-0"]
[WhiteElo "2521"]
[BlackElo "2269"]
[TimeControl "180+1"]
[EndTime "11:50:44 PDT"]
[Termination "11kevin won on time"]

1. Nf3 {[%clk 0:01:37.4]} 1... Nf6 {[%clk 0:02:59.1]} 2. g3 {[%clk 0:01:38.3]}
2... g6 {[%clk 0:02:59.1]} 3. Bg2 {[%clk 0:01:39.2]} 3... Bg7 {[%clk 0:03:00]}
4. O-O {[%clk 0:01:39.5]} 4... O-O {[%clk 0:03:00.5]} 5. c4 {[%clk 0:01:40.4]}
5... d6 {[%clk 0:03:00]} 6. Nc3 {[%clk 0:01:40.7]} 6... e5 {[%clk 0:03:00.4]} 7.
d4 {[%clk 0:01:41]} 7... Qe8 {[%clk 0:02:28.1]} 8. e4 {[%clk 0:01:37.6]} 8...
Bg4 {[%clk 0:02:26.3]} 9. dxe5 {[%clk 0:01:36.8]} 9... dxe5 {[%clk 0:02:26.1]}
10. Nb5 {[%clk 0:01:36.7]} 10... Qe7 {[%clk 0:02:18.9]} 11. b3 {[%clk
0:01:35.6]} 11... Bxf3 {[%clk 0:02:17.3]} 12. Qxf3 {[%clk 0:01:34.6]} 12... a6
{[%clk 0:02:08.2]} 13. Ba3 {[%clk 0:01:33.8]} 13... c5 {[%clk 0:02:08.7]} 14.
Nc3 {[%clk 0:01:33.6]} 14... Nc6 {[%clk 0:02:08.9]} 15. Nd5 {[%clk 0:01:31.3]}
15... Nxd5 {[%clk 0:02:08.6]} 16. exd5 {[%clk 0:01:31.7]} 16... Nd4 {[%clk
0:02:08.6]} 17. Qd1 {[%clk 0:01:31]} 17... Rad8 {[%clk 0:01:58.3]} 18. Rb1
{[%clk 0:01:30.8]} 18... a5 {[%clk 0:01:57.5]} 19. Bb2 {[%clk 0:01:28.4]} 19...
b6 {[%clk 0:01:56.7]} 20. a3 {[%clk 0:01:28.3]} 20... Rfe8 {[%clk 0:01:39.6]}
21. Bc3 {[%clk 0:01:27.8]} 21... Qg5 {[%clk 0:01:30.7]} 22. b4 {[%clk
0:01:26.7]} 22... axb4 {[%clk 0:01:30.1]} 23. axb4 {[%clk 0:01:27.6]} 23... Qf5
{[%clk 0:01:30.5]} 24. bxc5 {[%clk 0:01:25]} 24... bxc5 {[%clk 0:01:31.4]} 25.
Rb7 {[%clk 0:01:24.9]} 25... Bf8 {[%clk 0:01:26.6]} 26. Kh1 {[%clk 0:01:24.5]}
26... h5 {[%clk 0:01:24]} 27. h4 {[%clk 0:01:23.9]} 27... Rb8 {[%clk 0:01:18.4]}
28. Qb1 {[%clk 0:01:22.4]} 28... Rxb7 {[%clk 0:01:13.2]} 29. Qxb7 {[%clk
0:01:21.9]} 29... Qd3 {[%clk 0:01:13.1]} 30. Bxd4 {[%clk 0:01:17.6]} 30... exd4
{[%clk 0:01:08.7]} 31. d6 {[%clk 0:01:17.7]} 31... Bxd6 {[%clk 0:01:07.1]} 32.
Kh2 {[%clk 0:01:15.8]} 32... Rf8 {[%clk 0:00:59.7]} 33. Qd5 {[%clk 0:01:14.1]}
33... Rd8 {[%clk 0:00:57.4]} 34. Qg5 {[%clk 0:01:11.1]} 34... Re8 {[%clk
0:00:45.9]} 35. Bd5 {[%clk 0:01:08.1]} 35... Qf5 {[%clk 0:00:40.4]} 36. Qh6
{[%clk 0:01:01.6]} 36... d3 {[%clk 0:00:34.8]} 37. Kg2 {[%clk 0:01:00.6]} 37...
Be5 {[%clk 0:00:29.2]} 38. Re1 {[%clk 0:00:59.4]} 38... d2 {[%clk 0:00:27.5]}
39. Qxd2 {[%clk 0:00:58.2]} 39... Rf8 {[%clk 0:00:24.2]} 40. Qh6 {[%clk
0:00:56.7]} 40... Bf6 {[%clk 0:00:22.5]} 41. Re3 {[%clk 0:00:53]} 41... Bg7
{[%clk 0:00:20.7]} 42. Qg5 {[%clk 0:00:52.8]} 42... Qxg5 {[%clk 0:00:20.5]} 43.
hxg5 {[%clk 0:00:53.7]} 43... Bd4 {[%clk 0:00:20.7]} 44. Re7 {[%clk 0:00:53.3]}
44... Kg7 {[%clk 0:00:20.6]} 45. f4 {[%clk 0:00:52.9]} 45... Kg8 {[%clk
0:00:19.7]} 46. Kf3 {[%clk 0:00:52.5]} 46... Kg7 {[%clk 0:00:19.6]} 47. Ke4
{[%clk 0:00:51.7]} 47... Kg8 {[%clk 0:00:19.9]} 48. f5 {[%clk 0:00:52.1]} 48...
gxf5+ {[%clk 0:00:16.7]} 49. Kxf5 {[%clk 0:00:53]} 49... Kg7 {[%clk 0:00:16.9]}
50. g6 {[%clk 0:00:53.3]} 50... Bf6 {[%clk 0:00:14.4]} 51. Rd7 {[%clk
0:00:51.1]} 51... h4 {[%clk 0:00:13.8]} 52. g4 {[%clk 0:00:49]} 52... h3 {[%clk
0:00:13.8]} 53. g5 {[%clk 0:00:49.3]} 53... Bd4 {[%clk 0:00:12.9]} 54. gxf7
{[%clk 0:00:46.9]} 54... h2 {[%clk 0:00:12.2]} 55. g6 {[%clk 0:00:46.9]} 55...
Rh8 {[%clk 0:00:09.8]} 56. Bh1 {[%clk 0:00:33.7]} 56... Rf8 {[%clk 0:00:09.5]}
57. Rd6 {[%clk 0:00:31.3]} 57... Bg1 {[%clk 0:00:09]} 58. Ke4 {[%clk 0:00:30.4]}
58... Rh8 {[%clk 0:00:06.6]} 59. Kd5 {[%clk 0:00:29.5]} 59... Rh5+ {[%clk
0:00:05.2]} 60. Ke6 {[%clk 0:00:29.8]} 60... Bd4 {[%clk 0:00:02.3]} 61. Rd8
{[%clk 0:00:27.7]} 1-0

[Event "*** Titled Tuesday Blitz"]
[Site "Chess.com"]
[Date "2020.04.21"]
[Round "9"]
[White "Caterpiller35"]
[Black "DinaBelenkaya"]
[Result "1-0"]
[WhiteElo "2368"]
[BlackElo "2223"]
[TimeControl "180+1"]
[EndTime "11:50:44 PDT"]
[Termination "Caterpiller35 won on time"]

1. d4 {[%clk 0:03:00.4]} 1... Nf6 {[%clk 0:02:59.1]} 2. Bg5 {[%clk 0:03:00.4]}
2... Ne4 {[%clk 0:02:52.5]} 3. Bf4 {[%clk 0:03:00.1]} 3... g5 {[%clk 0:02:51.2]}
4. Bc1 {[%clk 0:03:00]} 4... Bg7 {[%clk 0:02:50.2]} 5. f3 {[%clk 0:03:00.1]}
5... Nf6 {[%clk 0:02:13.9]} 6. e4 {[%clk 0:03:00.1]} 6... h6 {[%clk 0:02:06.6]}
7. Nc3 {[%clk 0:02:59.8]} 7... d6 {[%clk 0:02:06.3]} 8. Be3 {[%clk 0:02:59]}
8... Nbd7 {[%clk 0:02:04.5]} 9. Qd2 {[%clk 0:02:59.2]} 9... c6 {[%clk
0:02:04.6]} 10. O-O-O {[%clk 0:02:57]} 10... Qc7 {[%clk 0:02:04.4]} 11. h4
{[%clk 0:02:56.1]} 11... g4 {[%clk 0:02:02]} 12. Nge2 {[%clk 0:02:51.7]} 12...
b5 {[%clk 0:01:56.1]} 13. Nf4 {[%clk 0:02:43.3]} 13... Bb7 {[%clk 0:01:43.3]}
14. d5 {[%clk 0:02:41.2]} 14... b4 {[%clk 0:01:29]} 15. Nce2 {[%clk 0:02:36.4]}
15... c5 {[%clk 0:01:26.9]} 16. Ng3 {[%clk 0:02:27.2]} 16... O-O-O {[%clk
0:01:03.6]} 17. Nfh5 {[%clk 0:02:12]} 17... Bf8 {[%clk 0:00:51.1]} 18. f4 {[%clk
0:02:10.6]} 18... Qa5 {[%clk 0:00:36.1]} 19. Kb1 {[%clk 0:02:10.3]} 19... Nxh5
{[%clk 0:00:30.7]} 20. Nxh5 {[%clk 0:02:09.7]} 20... f5 {[%clk 0:00:25.1]} 21.
exf5 {[%clk 0:02:05.5]} 21... Nb6 {[%clk 0:00:19.7]} 22. Be2 {[%clk 0:01:15]}
22... Bxd5 {[%clk 0:00:19.1]} 23. b3 {[%clk 0:01:14.7]} 23... Bb7 {[%clk
0:00:14]} 24. Bxg4 {[%clk 0:01:14.4]} 24... Nd5 {[%clk 0:00:13.3]} 25. Qxd5
{[%clk 0:01:04.6]} 25... Bxd5 {[%clk 0:00:13.1]} 26. Rxd5 {[%clk 0:01:05.5]}
26... Kc7 {[%clk 0:00:12.1]} 27. Rhd1 {[%clk 0:01:02.7]} 27... Rg8 {[%clk
0:00:12.2]} 28. Bf3 {[%clk 0:00:59.4]} 28... Bg7 {[%clk 0:00:12.3]} 29. Nxg7
{[%clk 0:00:49.9]} 29... Rxg7 {[%clk 0:00:13.2]} 30. g4 {[%clk 0:00:50.3]} 30...
Rgg8 {[%clk 0:00:09.7]} 31. g5 {[%clk 0:00:47.6]} 31... Qb5 {[%clk 0:00:09.2]}
32. g6 {[%clk 0:00:26.5]} 32... a5 {[%clk 0:00:08.1]} 33. f6 {[%clk 0:00:19.2]}
33... exf6 {[%clk 0:00:07.7]} 34. f5 {[%clk 0:00:19.4]} 34... a4 {[%clk
0:00:07.1]} 35. Bf4 {[%clk 0:00:13.6]} 35... axb3 {[%clk 0:00:06.9]} 36. cxb3
{[%clk 0:00:09.7]} 36... Rg7 {[%clk 0:00:04.1]} 37. Bxd6+ {[%clk 0:00:08.3]}
37... Rxd6 {[%clk 0:00:04.2]} 38. Rxd6 {[%clk 0:00:07.8]} 38... c4 {[%clk
0:00:04.3]} 39. Rc6+ {[%clk 0:00:06.9]} 39... Kb8 {[%clk 0:00:02.1]} 40. Rd8+
{[%clk 0:00:06.3]} 40... Ka7 {[%clk 0:00:02.2]} 41. Ra8+ {[%clk 0:00:05.6]}
41... Kxa8 {[%clk 0:00:01.5]} 42. Rc5+ {[%clk 0:00:05.3]} 42... Qb7 {[%clk
0:00:01.4]} 43. Bxb7+ {[%clk 0:00:03.2]} 43... Kxb7 {[%clk 0:00:02.3]} 44. Rxc4
{[%clk 0:00:03.5]} 44... h5 {[%clk 0:00:02.6]} 45. Rxb4+ {[%clk 0:00:03.6]}
45... Kc6 {[%clk 0:00:03.1]} 46. Re4 {[%clk 0:00:04.5]} 46... Kd5 {[%clk
0:00:03.2]} 47. Re6 {[%clk 0:00:04.9]} 47... Rc7 {[%clk 0:00:03]} 48. Rxf6
{[%clk 0:00:05.2]} 48... Ke5 {[%clk 0:00:02.4]} 49. Rf7 {[%clk 0:00:05.6]} 49...
Rc8 {[%clk 0:00:01.4]} 50. g7 {[%clk 0:00:06]} 1-0

[Event "*** Titled Tuesday Blitz"]
[Site "Chess.com"]
[Date "2020.04.21"]
[Round "9"]
[White "ENEASZ"]
[Black "Gabrielian_Artur"]
[Result "1-0"]
[WhiteElo "2535"]
[BlackElo "2684"]
[TimeControl "180+1"]
[EndTime "11:50:46 PDT"]
[Termination "ENEASZ won by resignation"]

1. e4 {[%clk 0:03:00.9]} 1... c5 {[%clk 0:02:59.5]} 2. c3 {[%clk 0:02:57.2]}
2... d6 {[%clk 0:02:57.3]} 3. d4 {[%clk 0:02:55.9]} 3... Nf6 {[%clk 0:02:57.1]}
4. Bd3 {[%clk 0:02:51.6]} 4... Qc7 {[%clk 0:02:56.5]} 5. Nf3 {[%clk 0:02:49.9]}
5... g6 {[%clk 0:02:56.3]} 6. O-O {[%clk 0:02:49.3]} 6... Bg7 {[%clk 0:02:56.5]}
7. h3 {[%clk 0:02:48.9]} 7... O-O {[%clk 0:02:55.4]} 8. Re1 {[%clk 0:02:46.7]}
8... Nc6 {[%clk 0:02:53.1]} 9. Bf4 {[%clk 0:02:39.5]} 9... e5 {[%clk 0:02:48.2]}
10. dxe5 {[%clk 0:02:34.4]} 10... dxe5 {[%clk 0:02:48.2]} 11. Bh2 {[%clk
0:02:34.8]} 11... Nh5 {[%clk 0:02:44.8]} 12. Nbd2 {[%clk 0:02:29.9]} 12... Nf4
{[%clk 0:02:44.1]} 13. Bc4 {[%clk 0:02:22.8]} 13... Bd7 {[%clk 0:02:09.3]} 14.
Qc2 {[%clk 0:02:17.1]} 14... Rad8 {[%clk 0:02:04.6]} 15. a4 {[%clk 0:02:15.6]}
15... Na5 {[%clk 0:01:46.7]} 16. Bf1 {[%clk 0:01:51.1]} 16... c4 {[%clk
0:01:43.5]} 17. Bxf4 {[%clk 0:01:23.3]} 17... exf4 {[%clk 0:01:43]} 18. e5
{[%clk 0:01:24.2]} 18... Bf5 {[%clk 0:01:39.4]} 19. Qc1 {[%clk 0:01:15.2]} 19...
Rfe8 {[%clk 0:01:39]} 20. Nd4 {[%clk 0:01:10.4]} 20... Bd7 {[%clk 0:01:05]} 21.
N2f3 {[%clk 0:01:05.4]} 21... Nb3 {[%clk 0:00:21.6]} 22. Nxb3 {[%clk 0:00:59]}
22... cxb3 {[%clk 0:00:22.5]} 23. Qxf4 {[%clk 0:00:59.1]} 23... Bc6 {[%clk
0:00:22.9]} 24. Bb5 {[%clk 0:00:27.7]} 24... Re6 {[%clk 0:00:12.4]} 25. Bc4
{[%clk 0:00:17.1]} 25... Re7 {[%clk 0:00:11.7]} 26. Ng5 {[%clk 0:00:12.4]} 26...
Bxe5 {[%clk 0:00:10.4]} 27. Qh4 {[%clk 0:00:10.7]} 27... h5 {[%clk 0:00:09.3]}
28. Nxf7 {[%clk 0:00:08.7]} 28... Rxf7 {[%clk 0:00:08.7]} 29. Rxe5 {[%clk
0:00:08.5]} 29... Kg7 {[%clk 0:00:04.8]} 30. Bxf7 {[%clk 0:00:06.8]} 30... Qxe5
{[%clk 0:00:05.1]} 31. Qxd8 {[%clk 0:00:06]} 31... Kxf7 {[%clk 0:00:06]} 32. Qd4
{[%clk 0:00:04.9]} 32... Qg5 {[%clk 0:00:04.7]} 33. g3 {[%clk 0:00:03.7]} 33...
Qf5 {[%clk 0:00:04.7]} 34. Qf4 {[%clk 0:00:03.7]} 34... Qxf4 {[%clk 0:00:05.1]}
35. gxf4 {[%clk 0:00:04.6]} 35... Ke6 {[%clk 0:00:06]} 36. a5 {[%clk 0:00:03.9]}
36... Kd5 {[%clk 0:00:06.9]} 37. Rd1+ {[%clk 0:00:04.1]} 37... Ke4 {[%clk
0:00:07.8]} 38. Rd4+ {[%clk 0:00:04.4]} 38... Kf3 {[%clk 0:00:08.7]} 39. Rb4
{[%clk 0:00:04.2]} 39... a6 {[%clk 0:00:08.7]} 40. Rxb3 {[%clk 0:00:03.9]} 40...
Kxf4 {[%clk 0:00:09.2]} 41. Rb4+ {[%clk 0:00:04.6]} 41... Kf3 {[%clk 0:00:09.5]}
42. Rd4 {[%clk 0:00:05.5]} 42... g5 {[%clk 0:00:10]} 43. h4 {[%clk 0:00:05.4]}
43... g4 {[%clk 0:00:10]} 44. Rd6 {[%clk 0:00:04.8]} 44... Be4 {[%clk 0:00:09]}
45. Rd4 {[%clk 0:00:03.7]} 45... Bc6 {[%clk 0:00:08.7]} 46. Rc4 {[%clk
0:00:03.7]} 46... Bd5 {[%clk 0:00:08]} 47. Rc5 {[%clk 0:00:03.8]} 47... Be4
{[%clk 0:00:07.7]} 48. Rxh5 {[%clk 0:00:03.6]} 48... Kf4 {[%clk 0:00:08.1]} 49.
Rg5 {[%clk 0:00:03.4]} 49... Bc6 {[%clk 0:00:07]} 50. Rg7 {[%clk 0:00:03.6]}
50... Kf3 {[%clk 0:00:06.5]} 51. h5 {[%clk 0:00:03.3]} 51... Ke2 {[%clk
0:00:07.4]} 52. h6 {[%clk 0:00:03.7]} 52... Kd3 {[%clk 0:00:08.3]} 53. h7 {[%clk
0:00:04.1]} 53... Kc2 {[%clk 0:00:09.2]} 54. h8=Q {[%clk 0:00:05]} 54... Kxb2
{[%clk 0:00:10.1]} 55. Rxg4 {[%clk 0:00:05]} 1-0

[Event "*** Titled Tuesday Blitz"]
[Site "Chess.com"]
[Date "2020.04.21"]
[Round "9"]
[White "konradrutkowski"]
[Black "miljanboro"]
[Result "0-1"]
[WhiteElo "2171"]
[BlackElo "2415"]
[TimeControl "180+1"]
[EndTime "11:50:48 PDT"]
[Termination "miljanboro won on time"]

1. Nf3 {[%clk 0:03:00.9]} 1... d5 {[%clk 0:02:58.6]} 2. g3 {[%clk 0:02:59.7]}
2... c5 {[%clk 0:02:58]} 3. Bg2 {[%clk 0:02:58.1]} 3... Nc6 {[%clk 0:02:57.9]}
4. O-O {[%clk 0:02:57.5]} 4... Nf6 {[%clk 0:02:56.9]} 5. d3 {[%clk 0:02:56.3]}
5... e6 {[%clk 0:02:48.3]} 6. Nbd2 {[%clk 0:02:54.9]} 6... Be7 {[%clk
0:02:47.2]} 7. e4 {[%clk 0:02:55.3]} 7... Qc7 {[%clk 0:02:41.9]} 8. Re1 {[%clk
0:02:54.4]} 8... b6 {[%clk 0:02:39.5]} 9. Nf1 {[%clk 0:02:31.6]} 9... Bb7 {[%clk
0:02:38]} 10. e5 {[%clk 0:02:15.8]} 10... Nd7 {[%clk 0:02:36.2]} 11. h4 {[%clk
0:02:15.4]} 11... h6 {[%clk 0:02:33.7]} 12. h5 {[%clk 0:02:08]} 12... Ndxe5
{[%clk 0:02:17]} 13. Nxe5 {[%clk 0:02:05]} 13... Nxe5 {[%clk 0:02:16.5]} 14. Bf4
{[%clk 0:02:03.2]} 14... Bd6 {[%clk 0:02:16.2]} 15. c3 {[%clk 0:01:49.3]} 15...
O-O {[%clk 0:02:11]} 16. d4 {[%clk 0:01:38.5]} 16... Nc6 {[%clk 0:02:04.6]} 17.
Be3 {[%clk 0:01:34.7]} 17... Qe7 {[%clk 0:01:50.1]} 18. Nh2 {[%clk 0:01:22.7]}
18... f5 {[%clk 0:01:40.7]} 19. dxc5 {[%clk 0:01:13.6]} 19... bxc5 {[%clk
0:01:39.7]} 20. Bxh6 {[%clk 0:01:11]} 20... gxh6 {[%clk 0:01:36.8]} 21. Rxe6
{[%clk 0:01:10.6]} 21... Qxe6 {[%clk 0:01:24.4]} 22. Bxd5 {[%clk 0:01:09.4]}
22... Rae8 {[%clk 0:01:24]} 23. Bxe6+ {[%clk 0:01:08.1]} 23... Rxe6 {[%clk
0:01:23.2]} 24. Qb3 {[%clk 0:01:07]} 24... Nd8 {[%clk 0:01:20.4]} 25. Re1 {[%clk
0:00:54.9]} 25... Re8 {[%clk 0:01:19.7]} 26. Nf3 {[%clk 0:00:43.6]} 26... Kg7
{[%clk 0:01:17.7]} 27. Rxe6 {[%clk 0:00:42.1]} 27... Rxe6 {[%clk 0:01:16.9]} 28.
c4 {[%clk 0:00:36.7]} 28... Bc6 {[%clk 0:01:08.2]} 29. Qc3+ {[%clk 0:00:33]}
29... Kg8 {[%clk 0:01:05.1]} 30. Nh4 {[%clk 0:00:22.7]} 30... Be4 {[%clk
0:00:53.7]} 31. f3 {[%clk 0:00:16.4]} 31... Be5 {[%clk 0:00:52.4]} 32. Qa3
{[%clk 0:00:13.7]} 32... Bd4+ {[%clk 0:00:51.6]} 33. Kg2 {[%clk 0:00:13.8]}
33... Bc6 {[%clk 0:00:49.9]} 34. Nxf5 {[%clk 0:00:12.8]} 34... Re2+ {[%clk
0:00:48.9]} 35. Kh3 {[%clk 0:00:13]} 35... Bd7 {[%clk 0:00:48.1]} 36. g4 {[%clk
0:00:13.2]} 36... Nf7 {[%clk 0:00:47.5]} 37. Qxa7 {[%clk 0:00:11.6]} 37... Bxf5
{[%clk 0:00:46.1]} 38. gxf5 {[%clk 0:00:10.3]} 38... Be5 {[%clk 0:00:44.8]} 39.
Qa8+ {[%clk 0:00:08.5]} 39... Kg7 {[%clk 0:00:43.5]} 40. f4 {[%clk 0:00:09.4]}
40... Bxf4 {[%clk 0:00:40.1]} 41. Kg4 {[%clk 0:00:08.8]} 41... Be5 {[%clk
0:00:37.6]} 42. f6+ {[%clk 0:00:08.6]} 42... Bxf6 {[%clk 0:00:36.7]} 43. Qb7
{[%clk 0:00:08]} 43... Rxb2 {[%clk 0:00:35.2]} 44. Qc7 {[%clk 0:00:06.3]} 44...
Rxa2 {[%clk 0:00:33.8]} 45. Kf5 {[%clk 0:00:06]} 45... Rf2+ {[%clk 0:00:32.6]}
46. Ke6 {[%clk 0:00:06]} 46... Re2+ {[%clk 0:00:31.7]} 47. Kd5 {[%clk
0:00:06.2]} 47... Re5+ {[%clk 0:00:30.7]} 48. Kc6 {[%clk 0:00:05.7]} 48... Rxh5
{[%clk 0:00:30.4]} 49. Qg3+ {[%clk 0:00:04.3]} 49... Rg5 {[%clk 0:00:29.6]} 50.
Qf3 {[%clk 0:00:03.8]} 50... h5 {[%clk 0:00:28.3]} 51. Kb5 {[%clk 0:00:04]}
51... h4 {[%clk 0:00:27.2]} 52. Qh3 {[%clk 0:00:03.9]} 52... Rg3 {[%clk
0:00:25.8]} 53. Qf5 {[%clk 0:00:04]} 53... h3 {[%clk 0:00:24.6]} 54. Qf4 {[%clk
0:00:03]} 54... Rg6 {[%clk 0:00:21.3]} 0-1